fUSD/lending_fUSD_20250622
["ID","MTS","AMOUNT","RATE_DAILY","PERIOD"]
[366894330,1750555838576,-152.059406,0.00020999,2]
[366894331,1750555838586,-2099.348279,0.00020999,2]
[366894332,1750555838595,-2099.348279,0.00020999,2]
[366894333,1750555838604,-151.0,0.00020999,2]
[366894334,1750555838614,-151.0,0.00020999,2]
[366894335,1750555838623,-151.0,0.00020999,2]
[366894336,1750555838633,-151.0,0.00020999,2]
[366894337,1750555838643,-151.0,0.00020999,2]
[366894338,1750555838652,-151.0,0.00020999,2]
[366894339,1750555838662,-151.0,0.00020999,2]
[366894340,1750555838672,-151.0,0.00020999,2]
[366894341,1750555838682,-151.0,0.00020999,2]
[366894342,1750555838692,-485.493244,0.00020999,2]
[366894343,1750555838701,-151.0,0.00020999,2]
[366894344,1750555838711,-485.493244,0.00020999,2]
[366894345,1750555838721,-1049.325849,0.00020999,2]
[366894346,1750555838731,-1049.325849,0.00020999,2]
[366894347,1750555838740,-151.0,0.00020999,2]
[366894348,1750555838972,-151.0,0.00020999,2]
[366894349,1750555839047,-151.0,0.00020999,2]
[366894350,1750555839057,-151.0,0.00020999,2]
[366894351,1750555839067,-151.0,0.00020999,2]
[366894352,1750555839077,-151.0,0.00020999,2]
[366894353,1750555839087,-151.0,0.00020999,2]
[366894354,1750555839096,-190.371331,0.00020999,2]
[366894355,1750555839106,-190.371331,0.00020999,2]
[366894356,1750555839115,-151.0,0.00020999,2]
[366894357,1750555839125,-153.828957,0.00020999,2]
[366894358,1750555839135,-151.0,0.00020999,2]
[366894359,1750555839145,-151.0,0.00020999,2]
[366894360,1750555839155,-151.0,0.00020999,2]
[366894361,1750555839166,-500.0,0.00020999,2]
[366894362,1750555839176,-500.0,0.00020999,2]
[366894363,1750555839185,-234.1418907,0.00020999,2]
[366894364,1750555839195,-500.0,0.00020999,2]
[366894365,1750555839204,-323.92795551,0.00020999,2]
[366894366,1750555839214,-500.0,0.00020999,2]
[366894367,1750555839224,-500.0,0.00020999,2]
[366894368,1750555839234,-500.0,0.00020999,2]
[366894369,1750555839243,-362.1217161,0.00020999,2]
[366894370,1750555839253,-500.0,0.00020999,2]
[366894371,1750555839263,-586.09331066,0.00020999,2]
[366894372,1750555839273,-500.0,0.00020999,2]
[366894373,1750555839282,-117028.25623283,0.00020999,2]
[366894374,1750555839292,-968195.35828487,0.00021,2]
[366894375,1750555839306,-183110.04145357,0.00021,2]
[366894376,1750555839322,-2708.25188921,0.00021,2]
[366894377,1750555839331,-378.09650667,0.00021,2]
[366894378,1750555839340,-173.0,0.00021,5]
[366894380,1750555839350,-173.0,0.00021,5]
[366894381,1750555839359,-173.0,0.00021,4]
[366894382,1750555839369,-173.0,0.00021,4]
[366894383,1750555839379,-173.0,0.00021,4]
[366894384,1750555839388,-173.0,0.00021,3]
[366894385,1750555839398,-173.0,0.00021,3]
[366894386,1750555839411,-173.0,0.00021,3]
[366894387,1750555839421,-173.0,0.00021,2]
[366894388,1750555839431,-171.53,0.00021,2]
[366894390,1750555839440,-151.0,0.00021,2]
[366894391,1750555839451,-151.0,0.00021,2]
[366894393,1750555839460,-1012.751362,0.00021,2]
[366894395,1750555839471,-1012.751362,0.00021,2]
[366894397,1750555839481,-151.0,0.00021,2]
[366894399,1750555839490,-151.0,0.00021,2]
[366894401,1750555839500,-151.0,0.00021,2]
[366894403,1750555839510,-151.0,0.00021,2]
[366894404,1750555839520,-764.13768,0.00021,2]
[366894405,1750555839530,-151.0,0.00021,2]
[366894407,1750555839539,-151.0,0.00021,2]
[366894409,1750555839548,-151.0,0.00021,2]
[366894410,1750555839558,-151.0,0.00021,2]
[366894413,1750555839567,-162.681373,0.00021,2]
[366894415,1750555839577,-162.681373,0.00021,2]
[366894416,1750555839586,-162.681373,0.00021,2]
[366894418,1750555839595,-162.681373,0.00021,2]
[366894420,1750555839604,-151.40706,0.00021,2]
[366894422,1750555839613,-151.0,0.00021,2]
[366894423,1750555839623,-151.0,0.00021,2]
[366894424,1750555839632,-151.0,0.00021,2]
[366894426,1750555839641,-280.781559,0.00021,2]
[366894427,1750555839650,-151.0,0.00021,2]
[366894428,1750555839660,-2099.348279,0.00021,2]
[366894429,1750555839669,-2099.348279,0.00021,2]
[366894430,1750555839678,-2099.348279,0.00021,2]
[366894431,1750555839688,-2099.348279,0.00021,2]
[366894432,1750555839697,-151.0,0.00021,2]
[366894433,1750555839707,-151.0,0.00021,2]
[366894434,1750555839716,-282.284928,0.00021,2]
[366894435,1750555839725,-151.0,0.00021,2]
[366894437,1750555839735,-151.0,0.00021,2]
[366894439,1750555839744,-151.0,0.00021,2]
[366894441,1750555839754,-151.0,0.00021,2]
[366894443,1750555839763,-152.256961,0.00021,2]
[366894445,1750555839772,-151.0,0.00021,2]
[366894447,1750555839782,-151.0,0.00021,2]
[366894449,1750555839791,-151.0,0.00021,2]
[366894452,1750555839801,-151.0,0.00021,2]
[366894453,1750555839810,-151.0,0.00021,2]
[366894456,1750555839819,-151.0,0.00021,2]
[366894458,1750555839829,-151.0,0.00021,2]
[366894460,1750555839839,-151.0,0.00021,2]
[366894462,1750555839849,-151.0,0.00021,2]
[366894463,1750555839858,-485.493244,0.00021,2]
[366894464,1750555839868,-485.493244,0.00021,2]
[366894465,1750555839878,-214.052526,0.00021,2]
[366894466,1750555839887,-485.493244,0.00021,2]
[366894467,1750555839898,-485.493244,0.00021,2]
[366894468,1750555839908,-1049.325849,0.00021,2]
[366894469,1750555839919,-1049.325849,0.00021,2]
[366894470,1750555839929,-1049.325849,0.00021,2]
[366894471,1750555839939,-1049.325849,0.00021,2]
[366894472,1750555839948,-151.0,0.00021,2]
[366894473,1750555839958,-151.0,0.00021,2]
[366894474,1750555839968,-151.0,0.00021,2]
[366894475,1750555839978,-153.006237,0.00021,2]
[366894476,1750555839988,-151.0,0.00021,2]
[366894477,1750555839998,-192.678488,0.00021,2]
[366894478,1750555840008,-151.0,0.00021,2]
[366894479,1750555840021,-151.0,0.00021,2]
[366894480,1750555840031,-151.0,0.00021,2]
[366894481,1750555840042,-151.0,0.00021,2]
[366894482,1750555840053,-151.0,0.00021,2]
[366894483,1750555840062,-151.0,0.00021,2]
[366894484,1750555840072,-151.0,0.00021,2]
[366894485,1750555840082,-151.0,0.00021,2]
[366894486,1750555840092,-190.371331,0.00021,2]
[366894487,1750555840101,-190.371331,0.00021,2]
[366894488,1750555840111,-190.371331,0.00021,2]
[366894489,1750555840121,-190.371331,0.00021,2]
[366894490,1750555840131,-151.0,0.00021,2]
[366894491,1750555840141,-151.0,0.00021,2]
[366894492,1750555840150,-151.0,0.00021,2]
[366894493,1750555840161,-151.0,0.00021,2]
[366894494,1750555840170,-151.0,0.00021,2]
[366894495,1750555840181,-207.186243,0.00021,2]
[366894496,1750555840190,-151.0,0.00021,2]
[366894497,1750555840199,-152.976655,0.00021,2]
[366894498,1750555840209,-354.96,0.00021014,2]
[366894499,1750555840219,-150.0,0.00021014,2]
[366894500,1750555840228,-203.0,0.00021039,4]
[366894501,1750555840239,-13626.29999217,0.00021063,2]
[366894502,1750555840249,-500.0,0.00021068,2]
[366894503,1750555840260,-151.0,0.00021093,2]
[366894504,1750555840271,-2099.348279,0.00021093,2]
[366894505,1750555840281,-2099.348279,0.00021093,2]
[366894506,1750555840291,-151.0,0.00021093,2]
[366894507,1750555840302,-151.0,0.00021093,2]
[366894508,1750555840312,-151.0,0.00021093,2]
[366894509,1750555840322,-192.286149,0.00021093,2]
[366894510,1750555840332,-151.0,0.00021093,2]
[366894511,1750555840342,-151.0,0.00021093,2]
[366894512,1750555840352,-485.493244,0.00021093,2]
[366894513,1750555840362,-485.493244,0.00021093,2]
[366894514,1750555840371,-1049.325849,0.00021093,2]
[366894515,1750555840381,-1049.325849,0.00021093,2]
[366894516,1750555840391,-1049.325849,0.00021093,2]
[366894518,1750555840402,-1049.325849,0.00021093,2]
[366894519,1750555840417,-151.0,0.00021093,2]
[366894520,1750555840427,-151.0,0.00021093,2]
[366894521,1750555840437,-151.0,0.00021093,2]
[366894522,1750555840447,-151.0,0.00021093,2]
[366894523,1750555840457,-151.0,0.00021093,2]
[366894524,1750555840467,-190.371331,0.00021093,2]
[366894525,1750555840478,-190.371331,0.00021093,2]
[366894526,1750555840490,-151.0,0.00021093,2]
[366894527,1750555840500,-151.0,0.00021093,2]
[366894528,1750555840510,-844.0,0.00021113,2]
[366894529,1750555840520,-151.0,0.00021138,2]
[366894530,1750555840530,-151.0,0.00021138,2]
[366894531,1750555840540,-151.0,0.00021138,2]
[366894532,1750555840550,-151.0,0.00021138,2]
[366894533,1750555840559,-151.0,0.00021138,2]
[366894534,1750555840570,-151.0,0.00021138,2]
[366894535,1750555840580,-278.680151,0.00021138,2]
[366894536,1750555840590,-278.680151,0.00021138,2]
[366894537,1750555840600,-151.0,0.00021138,2]
[366894538,1750555840610,-151.0,0.00021138,2]
[366894539,1750555840620,-151.0,0.00021138,2]
[366894540,1750555840630,-151.0,0.00021138,2]
[366894541,1750555840641,-501.570742,0.00021138,2]
[366894542,1750555840650,-501.570742,0.00021138,2]
[366894543,1750555840660,-150.0,0.00021138,2]
[366894544,1750555840669,-18435.25826868,0.00021148,2]
[366894545,1750555840679,-150.0,0.00021161,4]
[366894546,1750555840688,-151.0,0.000212,2]
[366894547,1750555840699,-228.452138,0.000212,2]
[366894548,1750555840708,-235.263581,0.000212,2]
[366894549,1750555840718,-162.681373,0.000212,2]
[366894550,1750555840729,-162.681373,0.000212,2]
[366894551,1750555840739,-162.681373,0.000212,2]
[366894552,1750555840749,-162.681373,0.000212,2]
[366894553,1750555840759,-2099.348279,0.000212,2]
[366894554,1750555840770,-2099.348279,0.000212,2]
[366894555,1750555840780,-151.0,0.000212,2]
[366894556,1750555840790,-151.0,0.000212,2]
[366894557,1750555840801,-151.0,0.000212,2]
[366894558,1750555840811,-485.493244,0.000212,2]
[366894559,1750555840822,-485.493244,0.000212,2]
[366894560,1750555840834,-151.0,0.000212,2]
[366894561,1750555840844,-190.371331,0.000212,2]
[366894562,1750555840854,-190.371331,0.000212,2]
[366894563,1750555840864,-151.0,0.000212,2]
[366894564,1750555840874,-150.0,0.0002121,2]
[366894565,1750555840883,-13626.29999217,0.00021226,2]
[366894566,1750555840892,-150.0,0.00021237,2]
[366894567,1750555840901,-151.0,0.00021245,2]
[366894568,1750555840911,-151.0,0.00021245,2]
[366894569,1750555840920,-2099.348279,0.00021287,2]
[366894570,1750555840930,-2099.348279,0.00021287,2]
[366894571,1750555840940,-151.0,0.00021287,2]
[366894572,1750555840950,-151.0,0.00021287,2]
[366894573,1750555840959,-151.0,0.00021287,2]
[366894574,1750555840969,-222.995545,0.00021287,2]
[366894575,1750555840979,-485.493244,0.00021287,2]
[366894576,1750555840989,-485.493244,0.00021287,2]
[366894577,1750555840998,-1049.325849,0.00021287,2]
[366894578,1750555841007,-1049.325849,0.00021287,2]
[366894579,1750555841017,-151.0,0.00021287,2]
[366894580,1750555841027,-151.0,0.00021287,2]
[366894581,1750555841036,-217.268391,0.00021287,2]
[366894582,1750555841046,-206.077662,0.00021287,2]
[366894583,1750555841056,-190.371331,0.00021287,2]
[366894584,1750555841066,-190.371331,0.00021287,2]
[366894585,1750555841076,-151.0,0.00021287,2]
[366894586,1750555841086,-150.0,0.00021288,2]
[366894587,1750555841096,-168.0,0.00021298,2]
[366894588,1750555841106,-150.0,0.00021303,2]
[366894589,1750555841115,-590.32232356,0.00021305,2]
[366894590,1750555841125,-162.681373,0.00021313,2]
[366894591,1750555841134,-162.681373,0.00021313,2]
[366894592,1750555841145,-6597.6922144,0.00021313,2]
[366894593,1750555841155,-300.0,0.00021314,2]
[366894594,1750555841166,-18435.25826868,0.00021321,2]
[366894595,1750555841176,-237.28,0.00021344,2]
[366894596,1750555841187,-269.78,0.00021361,2]
[366894597,1750555841196,-760.69631969,0.00021367,2]
[366894598,1750555841206,-341.6,0.0002137,2]
[366894599,1750555841216,-194.6,0.00021374,2]
[366894600,1750555841226,-151.0,0.00021375,2]
[366894601,1750555841236,-151.0,0.00021375,2]
[366894602,1750555841246,-151.0,0.00021375,2]
[366894603,1750555841256,-151.0,0.00021375,2]
[366894604,1750555841266,-151.0,0.00021375,2]
[366894605,1750555841276,-156.099058,0.00021375,2]
[366894606,1750555841287,-151.0,0.00021375,2]
[366894607,1750555841297,-151.0,0.00021375,2]
[366894608,1750555841307,-151.0,0.00021375,2]
[366894609,1750555841317,-232.380332,0.00021375,2]
[366894610,1750555841326,-278.680151,0.00021375,2]
[366894611,1750555841335,-278.680151,0.00021375,2]
[366894612,1750555841347,-1012.751362,0.00021375,2]
[366894613,1750555841356,-1012.751362,0.00021375,2]
[366894614,1750555841366,-764.13768,0.00021375,2]
[366894615,1750555841376,-151.0,0.00021375,2]
[366894616,1750555841386,-151.0,0.00021375,2]
[366894617,1750555841396,-151.0,0.00021375,2]
[366894618,1750555841411,-501.570742,0.00021375,2]
[366894619,1750555841421,-151.837463,0.00021375,2]
[366894620,1750555841432,-501.570742,0.00021375,2]
[366894621,1750555841443,-506.28,0.00021378,2]
[366894622,1750555841453,-13626.29999217,0.00021388,2]
[366894623,1750555841463,-151.0,0.0002139,2]
[366894624,1750555841475,-151.0,0.000214,2]
[366894625,1750555841486,-150.0,0.00021416,2]
[366894626,1750555841496,-316.68399361,0.00021418,2]
[366894627,1750555841506,-151.0,0.00021433,2]
[366894628,1750555841517,-297.61533609,0.00021468,2]
[366894629,1750555841527,-162.681373,0.0002148,2]
[366894630,1750555841537,-162.681373,0.0002148,2]
[366894631,1750555841547,-2099.348279,0.0002148,2]
[366894632,1750555841557,-2099.348279,0.0002148,2]
[366894633,1750555841566,-151.0,0.0002148,2]
[366894634,1750555841576,-151.0,0.0002148,2]
[366894635,1750555841586,-151.0,0.0002148,2]
[366894636,1750555841596,-485.493244,0.0002148,2]
[366894637,1750555841606,-485.493244,0.0002148,2]
[366894638,1750555841615,-1049.325849,0.0002148,2]
[366894639,1750555841624,-1049.325849,0.0002148,2]
[366894640,1750555841634,-151.0,0.0002148,2]
[366894641,1750555841644,-151.0,0.0002148,2]
[366894642,1750555841655,-190.371331,0.0002148,2]
[366894643,1750555841666,-190.371331,0.0002148,2]
[366894644,1750555841675,-151.0,0.0002148,2]
[366894645,1750555841686,-18435.25826868,0.00021495,2]
[366894646,1750555841696,-1000.0,0.00021521,2]
[366894647,1750555841706,-13626.29999217,0.00021551,2]
[366894648,1750555841716,-415.65,0.00021556,2]
[366894649,1750555841726,-170.89,0.00021556,2]
[366894650,1750555841735,-760.69631972,0.00021559,2]
[366894651,1750555841745,-151.0,0.0002159,2]
[366894652,1750555841755,-1012.751362,0.0002159,2]
[366894653,1750555841764,-1012.751362,0.0002159,2]
[366894654,1750555841774,-764.13768,0.0002159,2]
[366894655,1750555841784,-764.13768,0.0002159,2]
[366894656,1750555841794,-4800.0,0.000216,7]
[366894657,1750555841804,-151.25,0.00021601,2]
[366894658,1750555841814,-151.54616944,0.00021611,2]
[366894659,1750555841824,-207.4,0.00021611,2]
[366894660,1750555841834,-500.0,0.00021611,2]
[366894661,1750555841843,-500.0,0.00021611,2]
[366894662,1750555841852,-500.0,0.00021611,2]
[366894663,1750555841861,-154.73056637,0.00021611,2]
[366894664,1750555841870,-500.0,0.00021611,2]
[366894665,1750555841879,-500.0,0.00021611,2]
[366894666,1750555841888,-300.0,0.00021611,2]
[366894667,1750555841898,-209.26311116,0.00021611,2]
[366894668,1750555841907,-187.01978503,0.00021611,2]
[366894669,1750555841917,-500.0,0.00021611,2]
[366894670,1750555841928,-500.0,0.00021611,2]
[366894671,1750555841938,-500.0,0.00021611,2]
[366894672,1750555841947,-1957.856,0.00021611,2]
[366894673,1750555841957,-500.0,0.00021611,2]
[366894674,1750555841967,-500.0,0.00021611,2]
[366894675,1750555841978,-500.0,0.00021611,2]
[366894676,1750555841989,-500.0,0.00021611,2]
[366894677,1750555841998,-500.0,0.00021611,2]
[366894678,1750555842009,-540.21175837,0.00021611,2]
[366894679,1750555842019,-223.47964704,0.00021611,2]
[366894680,1750555842028,-151.0,0.00021611,2]
[366894681,1750555842038,-151.0,0.00021611,2]
[366894682,1750555842048,-151.0,0.00021611,2]
[366894683,1750555842058,-151.0,0.00021611,2]
[366894684,1750555842068,-151.0,0.00021611,2]
[366894685,1750555842078,-151.0,0.00021611,2]
[366894686,1750555842088,-151.0,0.00021611,2]
[366894687,1750555842097,-151.0,0.00021611,2]
[366894688,1750555842107,-151.0,0.00021611,2]
[366894689,1750555842117,-151.0,0.00021611,2]
[366894690,1750555842126,-262.0,0.00021611,2]
[366894691,1750555842135,-153.089452,0.00021611,2]
[366894692,1750555842145,-1500.0,0.00021611,7]
[366894693,1750555842156,-1500.0,0.00021611,7]
[366894694,1750555842167,-1500.0,0.00021611,7]
[366894695,1750555842177,-1500.0,0.00021611,7]
[366894696,1750555842187,-1500.0,0.00021611,7]
[366894697,1750555842197,-1500.0,0.00021611,7]
[366894698,1750555842207,-1500.0,0.00021611,7]
[366894699,1750555842216,-1500.0,0.00021611,7]
[366894700,1750555842227,-1500.0,0.00021611,7]
[366894701,1750555842236,-2099.348279,0.00021611,2]
[366894702,1750555842246,-1500.0,0.00021611,7]
[366894703,1750555842257,-1500.0,0.00021611,7]
[366894704,1750555842266,-1500.0,0.00021611,7]
[366894705,1750555842276,-1500.0,0.00021611,7]
[366894706,1750555842286,-1500.0,0.00021611,7]
[366894707,1750555842296,-1500.0,0.00021611,7]
[366894708,1750555842306,-1500.0,0.00021611,7]
[366894709,1750555842315,-1500.0,0.00021611,7]
[366894710,1750555842325,-1500.0,0.00021611,7]
[366894711,1750555842335,-1500.0,0.00021611,7]
[366894712,1750555842345,-2099.348279,0.00021611,2]
[366894713,1750555842355,-1344.0,0.00021611,7]
[366894714,1750555842364,-151.0,0.00021611,2]
[366894715,1750555842374,-151.0,0.00021611,2]
[366894716,1750555842384,-834.26476573,0.00021611,7]
[366894718,1750555842394,-151.0,0.00021611,2]
[366894719,1750555842407,-485.493244,0.00021611,2]
[366894720,1750555842417,-485.493244,0.00021611,2]
[366894721,1750555842427,-1049.325849,0.00021611,2]
[366894722,1750555842437,-1049.325849,0.00021611,2]
[366894723,1750555842447,-151.0,0.00021611,2]
[366894725,1750555842458,-151.0,0.00021611,2]
[366894726,1750555842467,-190.371331,0.00021611,2]
[366894727,1750555842478,-190.371331,0.00021611,2]
[366894728,1750555842490,-151.0,0.00021611,2]
[366894729,1750555842500,-151.0,0.00021611,2]
[366894730,1750555842510,-151.0,0.00021611,2]
[366894731,1750555842520,-151.0,0.00021613,2]
[366894732,1750555842529,-151.0,0.00021613,2]
[366894733,1750555842538,-151.0,0.00021613,2]
[366894734,1750555842548,-151.0,0.00021613,2]
[366894737,1750555842557,-151.0,0.00021613,2]
[366894738,1750555842567,-151.0,0.00021613,2]
[366894741,1750555842576,-151.0,0.00021613,2]
[366894742,1750555842586,-151.0,0.00021613,2]
[366894743,1750555842596,-151.0,0.00021613,2]
[366894744,1750555842606,-151.0,0.00021613,2]
[366894745,1750555842616,-151.0,0.00021613,2]
[366894746,1750555842625,-278.680151,0.00021613,2]
[366894747,1750555842636,-278.680151,0.00021613,2]
[366894748,1750555842646,-273.847944,0.00021613,2]
[366894750,1750555842655,-151.0,0.00021613,2]
[366894751,1750555842666,-273.847944,0.00021613,2]
[366894752,1750555842675,-151.0,0.00021613,2]
[366894753,1750555842686,-151.0,0.00021613,2]
[366894754,1750555842696,-501.570742,0.00021613,2]
[366894755,1750555842706,-501.570742,0.00021613,2]
[366894756,1750555842716,-243.651714,0.00021613,2]
[366894757,1750555842725,-243.651714,0.00021613,2]
[366894758,1750555842734,-151.0,0.00021613,2]
[366894759,1750555842744,-152.447931,0.00021613,2]
[366894760,1750555842755,-151.0,0.00021613,2]
[366894761,1750555842765,-3143.62,0.0002162,2]
[366894762,1750555842775,-151.0,0.00021632,2]
[366894763,1750555842785,-1012.751362,0.00021632,2]
[366894764,1750555842794,-1012.751362,0.00021632,2]
[366894765,1750555842804,-764.13768,0.00021632,2]
[366894766,1750555842813,-764.13768,0.00021632,2]
[366894767,1750555842822,-162.681373,0.00021632,2]
[366894768,1750555842831,-162.681373,0.00021632,2]
[366894769,1750555842840,-150.0,0.00021644,2]
[366894770,1750555842849,-150.0,0.00021644,2]
[366894771,1750555842859,-150.0,0.00021644,2]
[366894772,1750555842868,-170.79,0.00021644,2]
[366894773,1750555842878,-150.0,0.00021644,2]
[366894774,1750555842887,-150.0,0.00021644,2]
[366894775,1750555842898,-453.79,0.00021656,2]
[366894776,1750555842907,-2030.296672,0.00021666,2]
[366894777,1750555842918,-1049.325849,0.00021666,2]
[366894778,1750555842928,-1049.325849,0.00021666,2]
[366894779,1750555842938,-151.0,0.00021666,2]
[366894780,1750555842948,-18435.25826868,0.00021669,2]
[366894781,1750555842958,-2099.348279,0.00021673,2]
[366894782,1750555842968,-2099.348279,0.00021673,2]
[366894783,1750555842978,-151.0,0.00021673,2]
[366894784,1750555842989,-151.0,0.00021673,2]
[366894785,1750555843000,-151.0,0.00021673,2]
[366894786,1750555843010,-485.493244,0.00021673,2]
[366894787,1750555843021,-485.493244,0.00021673,2]
[366894788,1750555843030,-1049.325849,0.00021673,2]
[366894789,1750555843041,-1049.325853,0.00021673,2]
[366894790,1750555843054,-190.371331,0.00021673,2]
[366894791,1750555843063,-190.371331,0.00021673,2]
[366894793,1750555843073,-151.0,0.00021673,2]
[366894794,1750555843083,-6400.0,0.000217,7]
[366894795,1750555843092,-151.0,0.00021704,2]
[366894796,1750555843102,-151.073271,0.00021704,2]
[366894797,1750555843111,-151.0,0.00021704,2]
[366894798,1750555843122,-151.0,0.00021704,2]
[366894799,1750555843131,-151.0,0.00021704,2]
[366894800,1750555843141,-151.0,0.00021704,2]
[366894801,1750555843151,-151.0,0.00021704,2]
[366894802,1750555843162,-151.0,0.00021704,2]
[366894804,1750555843172,-293.835773,0.00021704,2]
[366894805,1750555843181,-293.835773,0.00021704,2]
[366894806,1750555843191,-151.0,0.00021704,2]
[366894807,1750555843201,-151.0,0.00021704,2]
[366894811,1750555843467,-151.0,0.00021704,2]
[366894813,1750555843480,-151.0,0.00021704,2]
[366894814,1750555843490,-151.0,0.00021704,2]
[366894815,1750555843501,-151.0,0.00021704,2]
[366894816,1750555843510,-151.0,0.00021704,2]
[366894817,1750555843521,-278.680151,0.00021704,2]
[366894818,1750555843531,-278.680151,0.00021704,2]
[366894819,1750555843541,-151.0,0.00021704,2]
[366894820,1750555843551,-151.0,0.00021704,2]
[366894821,1750555843561,-151.0,0.00021704,2]
[366894822,1750555843571,-501.570742,0.00021704,2]
[366894823,1750555843580,-501.570742,0.00021704,2]
[366894824,1750555843590,-162.681373,0.00021704,2]
[366894825,1750555843600,-162.681373,0.00021704,2]
[366894826,1750555843610,-2099.348279,0.00021704,2]
[366894827,1750555843620,-2099.34827,0.00021704,2]
[366894828,1750555843630,-151.0,0.00021704,2]
[366894830,1750555843639,-151.0,0.00021704,2]
[366894832,1750555843651,-151.0,0.00021704,2]
[366894833,1750555843660,-485.493244,0.00021704,2]
[366894834,1750555843669,-485.49324428,0.00021704,2]
[366894835,1750555843680,-190.371331,0.00021704,2]
[366894836,1750555843690,-190.371335,0.00021704,2]
[366894837,1750555843701,-1680.0,0.00021713,2]
[366894838,1750555843711,-13626.29999217,0.00021714,2]
[366894839,1750555843721,-2105.41764886,0.00021721,2]
[366894840,1750555843731,-151.0,0.00021741,2]
[366894841,1750555843740,-269.848595,0.00021741,2]
[366894842,1750555843750,-151.0,0.00021741,2]
[366894843,1750555843759,-151.0,0.00021741,2]
[366894844,1750555843768,-151.0,0.00021741,2]
[366894845,1750555843778,-150.26,0.00021751,2]
[366894846,1750555843788,-150.0,0.00021755,2]
[366894847,1750555843798,-151.0,0.00021757,2]
[366894848,1750555843809,-151.0,0.00021757,2]
[366894849,1750555843819,-151.0,0.00021757,2]
[366894850,1750555843829,-151.0,0.00021757,2]
[366894851,1750555843839,-151.0,0.00021757,2]
[366894852,1750555843849,-151.0,0.00021757,2]
[366894853,1750555843860,-151.0,0.00021757,2]
[366894854,1750555843870,-151.0,0.00021757,2]
[366894855,1750555843880,-151.0,0.00021757,2]
[366894856,1750555843891,-151.0,0.00021757,2]
[366894857,1750555843902,-278.680151,0.00021757,2]
[366894858,1750555843912,-278.680151,0.00021757,2]
[366894859,1750555843922,-1012.751362,0.00021757,2]
[366894860,1750555843931,-1012.751362,0.00021757,2]
[366894861,1750555843941,-764.13768,0.00021757,2]
[366894862,1750555843951,-764.13768,0.00021757,2]
[366894863,1750555843961,-273.847944,0.00021757,2]
[366894864,1750555843970,-151.0,0.00021757,2]
[366894865,1750555843980,-273.847944,0.00021757,2]
[366894866,1750555843990,-233.842675,0.00021757,2]
[366894867,1750555844000,-151.0,0.00021757,2]
[366894868,1750555844010,-501.570742,0.00021757,2]
[366894869,1750555844019,-501.570742,0.00021757,2]
[366894870,1750555844029,-162.681373,0.00021757,2]
[366894871,1750555844038,-162.681373,0.00021757,2]
[366894872,1750555844049,-243.651714,0.00021757,2]
[366894873,1750555844059,-243.651714,0.00021757,2]
[366894874,1750555844069,-151.0,0.00021757,2]
[366894875,1750555844079,-245.442352,0.00021762,2]
[366894876,1750555844088,-1012.751362,0.00021762,2]